Cogmind - Beta 13 *** ADVENTURER MODE // 2024.07.03 @ 11:09:38 Player: Schmaltz Result: Smashed by cave-in Performance ------------- Evolutions (1) 500 Regions Visited (3) 600 Robots Destroyed (7) 35 Value Destroyed (257) 257 Prototype IDs (0) 0 Alien Tech Used (0) 0 Bonus (0) 0 TOTAL SCORE: 1392 Bonus ------- None Cogmind --------- Core Integrity 0/400 Matter 233/300 Energy 74/100 System Corruption 10% Temperature Cool (0) Movement Core (200) Ox3 Location -9/Materials Parts ------- > --- POWER (1) -------- (None) > --- PROPULSION (3) --- (None) > --- UTILITY (3) ------ Small Storage Unit > --- WEAPON (2) ------- Medium Laser Shotgun > --- INVENTORY (8) ---- Small Laser Peak State ------------ > --- POWER ------------ Light Nuclear Core > --- PROPULSION ------- Aluminum Leg Aluminum Leg Aluminum Leg > --- UTILITY ---------- Visual Processing Unit Sensor Array Improved Signal Interpreter > --- WEAPON ----------- Medium Laser Shotgun > --- INVENTORY -------- Small Storage Unit Small Laser [Rating: 15] Favorites ----------- Power Light Nuclear Core Engine Light Ion Engine Power Core Light Nuclear Core Propulsion Aluminum Leg Leg Aluminum Leg Wheel Wheel Utility Visual Processing Unit Device Sensor Array Storage Small Storage Unit Processor Visual Processing Unit Protection Light Armor Plating Weapon Medium Laser Energy Gun Medium Laser Ballistic Gun Shotgun Slashing Weapon Mining Claw Build | -11 -10 -10 -9 ------- Run | Yrd Mat Min Mat Slots Evolved 2 | . . . 2 Power . | . . . . Propulsion 1 | . . . 1 Utility 1 | . . . 1 Weapon . | . . . . Parts Attached 22 | 5 3 6 8 Power 2 | 1 . 1 . Engine 1 | 1 . . . Core 1 | . . 1 . Reactor . | . . . . Propulsion 5 | 2 . 2 1 Treads . | . . . . Leg 3 | . . 2 1 Wheel 2 | 2 . . . Hover . | . . . . Flight . | . . . . Utility 8 | . 3 2 3 Device 3 | . 1 1 1 Storage 2 | . 1 . 1 Processor 2 | . 1 1 . Hackware . | . . . . Protection 1 | . . . 1 Artifact . | . . . . Weapon 7 | 2 . 1 4 Energy Gun 5 | 2 . 1 2 Energy Cannon . | . . . . Ballistic Gun 1 | . . . 1 Ballistic Cannon . | . . . . Launcher . | . . . . Special Weapon . | . . . . Impact Weapon . | . . . . Slashing Weapon 1 | . . . 1 Piercing Weapon . | . . . . Special Melee Weapon . | . . . . Unidentified Prototypes . | . . . . Parts Lost 13 | . . 4 9 Power 2 | . . 1 1 Propulsion 4 | . . 1 3 Utility 5 | . . 1 4 Weapon 2 | . . 1 1 Highest Loss Streak 9 | . . 3 9 To Critical Strikes . | . . . . Average Slot Usage (%) 92 | . 83 95 88 Engine 4 | . 14 5 . Core 7 | . . 7 10 Leg 16 | . . 12 28 Wheel 11 | . 28 14 . Device 6 | . 1 5 8 Storage 1 | . 9 . . Processor 18 | . 1 21 17 Energy Gun 21 | . 28 26 10 Ballistic Gun 3 | . . . 10 Naked Turns . | . . . . Heaviest Build 13 | 7 13 8 11 Greatest Support 30 | 20 20 20 30 Greatest Overweight (x) . | . . . . Average Overweight (x) . | . . . . Largest Inventory Capacity 8 | 5 8 5 8 Average Capacity 5 | 5 7 5 5 Most Carried 5 | 4 3 5 4 Average Carried 3 | 1 2 3 2 Final Capacity 8 | 5 5 5 8 Final Carried 3 | 2 3 3 1 Class Distribution -------------------- 78% | Mutant 21% | Scavenger-Skirmisher Dominant Class ---------------- Mutant | -10/Materials Mutant | -10/Mines Scavenger-Skirmisher | -9/Materials Resources | -11 -10 -10 -9 ----------- Run | Yrd Mat Min Mat Matter Collected 370 | 250 . 70 50 Remotely . | . . . . Salvage Created 338 | 50 28 209 51 Parts 12 | 1 2 7 2 Haulers Intercepted . | . . . . Recyclers Shooed . | . . . . Parts Field Recycled . | . . . . Retrieved Matter . | . . . . Parts Self-Destructed . | . . . . Prevented . | . . . . Kills | -11 -10 -10 -9 ------- Run | Yrd Mat Min Mat Combat Hostiles Destroyed 6 | 1 . 4 1 Guns 6 | 1 . 4 1 Classes Destroyed 3 | 1 1 . 1 Watcher 1 | . 1 . . Grunt 5 | 1 . 4 . Sentry 1 | . . . 1 Best Kill Streak 2 | 1 1 2 1 Combat Bots Only 2 | 1 . 2 1 Max Kills in Single Turn 1 | 1 1 1 1 Gunslinging . | . . . . Exploded . | . . . . Melee . | . . . . Uniques/NPCs Destroyed . | . . . . Combat | -11 -10 -10 -9 -------- Run | Yrd Mat Min Mat Hostile Shots Fired 50 | 3 1 29 17 Missed 11 | . . 7 4 Damage Taken 1716 | 25 12 252 1427 Core 544 | 9 . 76 459 Absorbed by Shields . | . . . . Ignored by Resistances 120 | 9 4 72 35 Core Remaining (%) 81 | 96 . 66 . Volleys Fired 47 | 3 2 23 19 Largest 2 | 2 2 2 2 Hottest 90 | 90 90 90 73 Shots Fired 78 | 6 4 30 38 Gun 78 | 6 4 30 38 Cannon . | . . . . Launcher . | . . . . Special . | . . . . Kinetic 19 | . . . 19 Thermal 47 | 3 2 23 19 Explosive . | . . . . Electromagnetic 12 | 3 2 7 . Robot Hit Streak 14 | 6 7 9 14 Robot Miss Streak 2 | . 2 2 1 Penetration Max . | . . . . Secondary Targets 1 | . . 1 . Max Gunslinging Chain 1 | . . 1 . Shots Hit Robots 39 | 6 2 25 6 Core Hits 14 | 2 1 9 2 Critical Kills . | . . . . Critical Parts Destroyed . | . . . . Critical Strikes 3 | . . 3 . Burn 3 | . . 3 . Melee Attacks 7 | . . . 7 Impact . | . . . . Slashing 7 | . . . 7 Piercing . | . . . . Sneak Attacks . | . . . . Combat Hostiles . | . . . . Follow-up Attacks . | . . . . Damage Inflicted 530 | 74 37 319 100 Guns 530 | 74 37 319 100 Cannons . | . . . . Explosions . | . . . . Melee . | . . . . Ramming . | . . . . Kinetic 62 | . . . 62 Thermal 328 | 37 13 240 38 Explosive . | . . . . Electromagnetic 140 | 37 24 79 . Impact . | . . . . Slashing . | . . . . Piercing . | . . . . Highest Corruption 9 | . . . 9 Average Corruption 6 | . . . 6 Corruption Purged . | . . . . Corruption Blocked . | . . . . Effects 1 | . . . 1 Data Loss (major) 1 | . . . 1 Overload Shots . | . . . . Overflow Damage . | . . . . Projectiles . | . . . . Explosions . | . . . . Melee . | . . . . Knockbacks . | . . . . Impact . | . . . . Kinetic . | . . . . Secondary . | . . . . Self-Inflicted Damage . | . . . . Shots . | . . . . Rammed . | . . . . Targets Rammed . | . . . . Kicked . | . . . . Crushed . | . . . . Highest Temperature 321 | 108 30 321 72 Average Temperature 98 | 57 17 154 35 Received Heat Transfer 243 | 18 9 180 36 Effects 1 | . . 1 . Interference 1 | . . 1 . Siege Activations . | . . . . Robots Corrupted . | . . . . Combat Hostiles . | . . . . Parts Fried . | . . . . Impact Corruptions . | . . . . Robots Melted . | . . . . Combat Hostiles . | . . . . Parts Melted 3 | . . 2 1 Heat Transferred 1184 | 111 37 925 111 Parts Sabotaged . | . . . . Parts Stolen . | . . . . Parts Stripped . | . . . . Power Chain Reactions . | . . . . Alert | -11 -10 -10 -9 ------- Run | Yrd Mat Min Mat Peak Influence 106 | 20 43 73 106 Initial 13 | . 11 13 . Average 26 | 3 20 30 26 Maximum Alert Level . | . . . . Low Security (%) 100 | 100 100 100 100 Level 1 . | . . . . Level 2 . | . . . . Level 3 . | . . . . Level 4 . | . . . . Level 5 . | . . . . High Security . | . . . . Max Security . | . . . . Squads Dispatched 2 | . . 1 1 Investigation 1 | . . 1 . Extermination . | . . . . Reinforcement 1 | . . . 1 Assault . | . . . . Garrison . | . . . . Intercept . | . . . . Searches Triggered . | . . . . Construction Impeded . | . . . . Haulers Reinforced . | . . . . Active Scanning Responses . | . . . . Cargo Convoy Interrupts . | . . . . Stealth | -11 -10 -10 -9 --------- Run | Yrd Mat Min Mat Distress Signals 1 | . . . 1 Communications Jammed . | . . . . Distress Signals . | . . . . Times Spotted 14 | 1 4 4 5 Peak Tracking Total 6 | 1 2 2 6 Tactical Retreats 1 | . . . 1 Traps | -11 -10 -10 -9 ------- Run | Yrd Mat Min Mat Traps Triggered . | . . . . Indirectly . | . . . . Trap Hack Attempts . | . . . . Triggered . | . . . . Disarmed . | . . . . Reprogrammed . | . . . . Reused . | . . . . Traps Extracted . | . . . . Installed . | . . . . Triggered 1 | . 1 . . Machines | -11 -10 -10 -9 ---------- Run | Yrd Mat Min Mat Machines Disabled . | . . . . Max in Single Turn . | . . . . Machines Repaired . | . . . . Machines Dismantled . | . . . . Machines Sabotaged . | . . . . Overloaded Fab Kills . | . . . . Hacking | -11 -10 -10 -9 --------- Run | Yrd Mat Min Mat Machines Accessed 1 | . . 1 . Terminals . | . . . . Fabricators . | . . . . Repair Stations . | . . . . Recycling Units . | . . . . Scanalyzers . | . . . . Garrison Access . | . . . . Total Hacks 1 | . . 1 . Successful 1 | . . 1 . Failed . | . . . . Catastrophic . | . . . . Database Lockouts . | . . . . Manual . | . . . . Terminals . | . . . . Fabricators . | . . . . Repair Stations . | . . . . Recycling Units . | . . . . Scanalyzers . | . . . . Garrison Access . | . . . . Terminal Hacks 1 | . . 1 . Open Door 1 | . . 1 . Fabricator Hacks . | . . . . Repair Station Hacks . | . . . . Recycling Unit Hacks . | . . . . Scanalyzer . | . . . . Garrison Access Hacks . | . . . . Unauthorized Hacks . | . . . . Terminals . | . . . . Fabricators . | . . . . Repair Stations . | . . . . Recycling Units . | . . . . Scanalyzers . | . . . . Garrison Access . | . . . . Data Cores Recovered . | . . . . Used . | . . . . Hacking Detections . | . . . . Full Trace Events . | . . . . Feedback Events . | . . . . Feedback Blocked . | . . . . Robot Schematics Acquired . | . . . . Robots Built . | . . . . Authchips . | . . . . Time . | . . . . Total Robot Build Rating . | . . . . Part Schematics Acquired . | . . . . Parts Built . | . . . . Authchips . | . . . . Time . | . . . . Total Part Build Rating . | . . . . Parts Repaired . | . . . . Time . | . . . . Parts Recycled . | . . . . Recycled Matter . | . . . . Retrieved Matter . | . . . . Retrieved Components . | . . . . Parts Scanalyzed . | . . . . Part Schematics Acquired . | . . . . Parts Damaged . | . . . . Bothacking | -11 -10 -10 -9 ------------ Run | Yrd Mat Min Mat Used RIF Installer . | . . . . Robots Hacked . | . . . . Non-combat . | . . . . Combat . | . . . . Robot Hacks Applied . | . . . . Relay Couplers Released . | . . . . Fabnet Peak Effective % . | . . . . Robots Rewired . | . . . . Allies Hacked . | . . . . Hacks Repelled . | . . . . Allies | -11 -10 -10 -9 -------- Run | Yrd Mat Min Mat Total Allies . | . . . . Largest Group . | . . . . Highest-Rated Group . | . . . . Highest-Rated Ally . | . . . . Total Orders . | . . . . Ally Attacks . | . . . . Total Damage . | . . . . Kills . | . . . . Allies Corrupted . | . . . . Allies Melted . | . . . . Intel | -11 -10 -10 -9 ------- Run | Yrd Mat Min Mat Robot Analysis Total . | . . . . Derelict Logs Recovered 2 | . . 2 . Drone Launches . | . . . . Drone Recoveries . | . . . . Exploration | -11 -10 -10 -9 ------------- Run | Yrd Mat Min Mat Turns Passed 934 | 70 105 486 273 Spaces Moved 663 | 64 106 367 126 Core 21 | 21 . . . Treads . | . . . . Legs 304 | . . 178 126 Wheels 338 | 43 106 189 . Hover . | . . . . Flight . | . . . . Fastest Speed 50 | 50 80 80 120 Average Speed 97 | 70 80 99 120 Slowest Speed 120 | 80 80 120 120 Overloaded Moves . | . . . . Propulsion Burnouts . | . . . . Robots Hopped . | . . . . Cave-ins Triggered 4 | . . . 4 Exploration Rate (%) 28 | 7 29 66 13 Regions Visited 3 Branch Regions 1 Pre-discovered Areas 1 | . . 1 . Known Exits Taken 1 | . . 1 . Unknown Exits Taken 2 | 1 1 . . Scrap Searched 1 | . . 1 . Spaces Dug 6 | . . . 6 Terrain Destroyed 6 | . . . 6 Melee 6 | . . . 6 Projectile . | . . . . AOE . | . . . . Terrain Rammed . | . . . . Walls Destroyed . | . . . . Machines Disabled . | . . . . Actions | -11 -10 -10 -9 --------- Run | Yrd Mat Min Mat Total 856 | 83 121 457 195 Wait 100 | 3 8 57 32 Move 659 | 63 105 366 125 Hop . | . . . . Pick Up 18 | 8 3 4 3 Fast Attach 1 | . . 1 . Attach 15 | 5 2 3 5 Detach . | . . . . Swap 6 | . 1 2 3 Drop 2 | 1 . 1 . Fire 47 | 3 2 23 19 Melee 7 | . . . 7 Ram . | . . . . Kick . | . . . . Crush . | . . . . Escape Stasis 1 | . . . 1 Rewire . | . . . . Trap . | . . . . Miscellaneous . | . . . . Route ------- -11/Scrapyard -10/Materials -10/Mines (discovered 2 exits: *Mat x2) -9/Materials (discovered 2 exits: Min x2) History --------- Turn | Location | Event 2 | -11/Scrapyard | Met Revision 17 49 | -11/Scrapyard | Discovered new exit (range 8) 71 | -11/Scrapyard | Entered Materials 170 | -10/Materials | Discovered new exit (range 9) 176 | -10/Materials | Entered Mines 179 | -10/Mines | Met a Derelict shopkeep closing up shop 304 | -10/Mines | Build established: Mutant 410 | -10/Mines | Lost 3 parts (1p1u1w) 463 | -10/Mines | Learned location of Mines (-9) 463 | -10/Mines | Discovered new exit (range 5) 475 | -10/Mines | Identified exit to Materials 614 | -10/Mines | Discovered exit to Materials (range 15) 662 | -10/Mines | Entered Materials 662 | -9/Materials | Evolved 2 slots: Propulsion x1, Utility x1 663 | -9/Materials | Identified exit to Mines 871 | -9/Materials | Crushed by falling debris 892 | -9/Materials | Crushed by falling debris 919 | -9/Materials | Crushed by falling debris 919 | -9/Materials | Core integrity fell below 50% 919 | -9/Materials | Core integrity fell below 20% 936 | -9/Materials | Crushed by falling debris 936 | -9/Materials | Smashed by cave-in Last Messages --------------- between rooms is safe unless the area was destabilized by an explosion. 00892_ The unstable cave ceiling collapses. 00892_ Crushed by falling debris. 00892_ Mining Claw destroyed. 00892_ Aluminum Leg destroyed. 00892_ System corrupted by crushing effect (+3). 00892_ Visual Processing Unit destroyed. 00892_ System corrupted by crushing effect (+1). 00919_ The unstable cave ceiling collapses. 00919_ Crushed by falling debris. 00919_ Lgt. Nuclear Core destroyed. 00919_ System corrupted by crushing effect (+2). 00930_ System corrupted: Substantial component data lost. 00936_ The unstable cave ceiling collapses. 00936_ Crushed by falling debris. 00936_ Lgt. Armor Plating destroyed. 00936_ System corrupted by crushing effect (+1). 00936_ Aluminum Leg destroyed. Map ----- +----------------------------------------------------+ | ???????????????????????? | | ??????????????????????? | | ??????????????????????? | | ??????????????????????? | | ??????????????????????? ############# | | ??????????????????????? #######??####????# | | ??????????????????????????????????????# ??# | | ??????????????????????????????????????# # | | ??????????????????????????????????????? """"" + | | ??????????????????????????????????????? """"" # | | ????????????????????????????????????????""""??# | | ?????????????????????????????#??????????##????# | | ???????????????????????????? #????????????????# | | ????????????????????????#+##/######???????????# | | ????????????????????????# % #######?????# | | ????????????????????????# # =####### | | ????????????????????????# """"""" # | | ????????????????????????# """"""" + % | | ????????????#######?????# """"""" # | | ????????????# #### """"""" # ########## | | ????????????# / / """"""" ###+###????????? | | ????????????# [ #### #??????????????? | | ????????????# ?????###########??????????????? | | ????????? / ???????# #??????????????????????? | | ?????? # ?????????# #??????????????????????? | | ???????!]???#??????????##@#??????????????????????? | | ??????????????????????#####??????????????????????? | | ??????????????????????####???????????????????????? | | ??????????????????????###????????????????????????? | | ?????????????????????????????????????????????????? | | ?????????????????????????????????????????????????? | | ?????????????????????????????????????????????????? | | ?????????????????????????????????????????????????? | | ?????????????????????????????????????????????????? | | ?????????????????????????????????????????????????? | | ?????????????????????????????????????????????????? | | ?????????????????????????????????????????????????? | | ?????????????????????????????????????????????????? | | ?????????????????????????????????????????????????? | | ?????????????????????????????????????????????????? | | ??????????>??????????????????????????????????????? | | ?????????????????????????????????????????????????? | | ?????????????????????????????????????????????????? | | ?????????????????????????????????????????????????? | | ?????????????????????????????????????????????????? | | ?????????????????????????????????????????????????? | | ?????????????????????????????????????????????????? | | ?????????????????????????????????????????????????? | | ?????????????????????????????????????????????????? | | ?????????????????????????????????????????????????? | +----------------------------------------------------+ Best States ------------- Heat Dissipation 28 Energy Generation 14 Energy Capacity 160 Matter Stores 300 Matter Capacity 300 Sight Range 18 Robot Scan Range 15 Terrain Scan Density 10 Resistance: KI 20 Resistance: TH 20 Resistance: EX 20 Resistance: EM 20 Resistance: I 20 Resistance: S 20 Resistance: P 20 Evasion (%) 55 Offensive Hacking 10 Item Schematics ----------------- None Robot Schematics ------------------ None Fabricated ------------ Nothing Alien Tech Used ----------------- None Achievements -------------- Unlikely Earthworm Challenges ------------ None Game ------ Seed ColdNavigationLance Manual? 0 Play Time 00:15:13 Cumulative 4.1 hours Start 2024.07.03 @ 10:55:37 End 2024.07.03 @ 11:09:38 Sessions 1 Manual Loads 0 Difficulty Adventurer Special Mode None Game No. 6 Rogue 1 Adventurer 5 Explorer 0 Win Type - Total 0 Types 0/0/0/0/0/0/0/0/0 Lore% 14 Gallery% 6 Achievement% 8 Wizard Run 0 Options --------- Layout 1 ASCII 0 Keyboard 0 Movement Mouse Keybinds 0 Fullscreen 1 Font 16/SmallcapsGlow Map View 50x40 Zoom Use 0% Tactical HUD 1 Map Filters NONE Filters NONE Steam SD RUN: 92ee0d28-fe44-4c66-bee1-e68e51ae24d4